bitfinex-derivatives/quotes_ETHF0:USTF0_20250411
["timestamp","ask_amount","ask_price","bid_price","bid_amount"]
[1744366433628,4.40284134,1556.3,1556.2,7.07842]
[1744366433927,3.11700134,1556.3,1556.2,7.07842]
[1744366434124,0.35130134,1556.3,1556.2,7.07842]
[1744366434627,0.35130134,1556.3,1556.2,12.07842]
[1744366435221,0.35147233,1556.3,1556.2,12.07842]
[1744366435930,0.35147233,1556.3,1556.2,7.07842]
[1744366436125,7.52063462,1556.5,1556.4,1.28576]
[1744366436430,7.87192369,1556.5,1556.4,9.55856]
[1744366436630,7.87192369,1556.5,1556.4,14.01986]
[1744366436831,7.87192369,1556.5,1556.4,16.80316]
[1744366438227,7.87192369,1556.5,1556.4,17.23013439]
[1744366438432,7.87192369,1556.5,1556.4,16.80316]
[1744366439428,7.87192369,1556.5,1556.4,11.73816]
[1744366439631,10.69772369,1556.5,1556.4,11.73816]
[1744366439928,7.87192369,1556.5,1556.4,11.73816]
[1744366440723,7.87211641,1556.5,1556.4,11.73816]
[1744366440924,7.87211641,1556.5,1556.4,16.73816]
[1744366441127,7.52063462,1556.5,1556.4,16.73816]
[1744366441526,7.53027534,1556.8,1556.7,1.28551]
[1744366441735,7.86867521,1556.8,1556.7,6.35051]
[1744366441922,10.52787521,1556.8,1556.7,6.35051]
[1744366442127,11.81330521,1556.8,1556.7,6.35051]
[1744366442532,11.81330521,1556.8,1556.7,1.28551]
[1744366445737,10.52787521,1556.8,1556.7,1.28551]
[1744366446237,11.81330521,1556.8,1556.7,1.28551]
[1744366446424,10.52787521,1556.8,1556.6,3.2078]
[1744366446630,4.31756066,1556.7,1556.6,4.49333]
[1744366446937,4.31756066,1556.7,1556.6,4.48027921]
[1744366447432,3.03205066,1556.7,1556.6,4.48027921]
[1744366447633,8.48131814,1556.8,1556.7,1.28551]
[1744366447933,8.81960682,1556.8,1556.7,6.28921]
[1744366448140,8.81963695,1556.8,1556.7,47.08921]
[1744366448341,8.46826735,1556.8,1556.7,47.08921]
[1744366448534,8.46826735,1556.8,1556.7,52.08921]
[1744366449438,8.46826735,1556.8,1556.7,47.08921]
[1744366450129,8.81935676,1556.8,1556.7,47.08921]
[1744366450330,8.46826735,1556.8,1556.7,47.08921]
[1744366451142,2.66314072,1556.9,1556.8,1.28543]
[1744366451440,3.01429975,1556.9,1556.8,12.29403]
[1744366452043,0.00964072,1556.9,1556.8,12.29403]
[1744366452236,0.00964072,1556.9,1556.8,14.71153]
[1744366452838,0.00964072,1556.9,1556.8,55.51153]
[1744366454044,0.00964072,1556.9,1556.8,50.35723]
[1744366454534,0.00964072,1556.9,1556.8,53.18623]
[1744366457744,0.36068745,1556.9,1556.8,53.18623]
[1744366458041,0.00964072,1556.9,1556.8,53.18623]
[1744366458334,0.00964072,1556.9,1556.8,50.35723]
[1744366458543,1.64602465,1556.9,1556.8,50.35723]
[1744366458942,0.36068465,1556.9,1556.8,50.35723]
[1744366459345,0.00964072,1556.9,1556.8,53.37133]
[1744366462439,7.2e-07,1556.9,1556.8,58.37133]
[1744366462644,14.65950843,1557.5,1557.4,1.28493]
[1744366462840,15.69910932,1557.5,1557.4,4.49273]
[1744366463145,16.98395932,1557.5,1557.4,3.2078]
[1744366464539,1.28493,1557.4,1557.3,4.902]
[1744366464747,7.42423089,1557.4,1557.3,4.88894921]
[1744366464946,12.42423089,1557.4,1557.3,4.88894921]
[1744366465247,12.42429089,1557.4,1557.2,3.2078]
[1744366465437,3.37060089,1557.3,1557.2,4.4929]
[1744366465947,4.65561089,1557.3,1557.2,4.4929]
[1744366466948,4.65557789,1557.3,1557.2,4.4929]
[1744366467851,4.65557789,1557.3,1557.2,3.2078]
[1744366468050,1.2851,1557.2,1557.1,4.901]
[1744366468245,3.37056789,1557.2,1557.1,4.901]
[1744366468448,3.37056789,1557.2,1557.1,6.18618]
[1744366468649,4.65566789,1557.2,1557.1,6.18618]
[1744366469343,1.28518,1557.1,1557.0,2.9755]
[1744366469550,1.28543,1556.8,1556.7,0.00964072]
[1744366469746,1.63649789,1556.8,1556.7,0.00964072]
[1744366470956,0.35106789,1556.8,1556.7,4.50295072]
[1744366471142,1.28523,1557.1,1556.8,1.28543]
[1744366471441,1.28523,1557.1,1557.0,3.2078]
[1744366471651,4.41662,1557.0,1556.8,3.2078]
[1744366471851,4.41664,1556.9,1556.8,7.34873]
[1744366472343,4.41664,1556.9,1556.8,3.2078]
[1744366472848,4.41664,1556.9,1556.8,4.49323]
[1744366473346,3.1313,1556.9,1556.8,4.49323]
[1744366473545,13.95603843,1557.1,1556.8,3.2078]
[1744366473745,14.41078843,1557.1,1557.0,3.2078]
[1744366473937,9.99430843,1557.1,1557.0,9.39406]
[1744366474144,9.99430843,1557.1,1557.0,17.63026]
[1744366474339,14.41078843,1557.1,1557.0,16.345]
[1744366474650,13.12560843,1557.1,1557.0,17.63026]
[1744366474948,9.99430843,1557.1,1557.0,22.63026]
[1744366475540,9.99430843,1557.1,1557.0,63.43026]
[1744366476143,9.99430843,1557.4,1557.3,1.28501]
[1744366476351,9.99430843,1557.4,1557.3,9.39381]
[1744366476649,9.99430843,1557.4,1557.3,14.39381]
[1744366476841,9.99430843,1557.4,1557.3,17.05471]
[1744366477346,9.99430843,1557.4,1557.3,12.05471]
[1744366478549,9.99430843,1557.4,1557.3,17.05471]
[1744366479345,9.99430843,1557.4,1557.3,12.05471]
[1744366479848,9.99430843,1557.4,1557.3,17.05471]
[1744366480342,8.32510843,1557.4,1557.3,17.05471]
[1744366480542,8.25088515,1557.4,1557.3,17.05471]
[1744366480853,8.0328028,1557.4,1557.3,17.05471]
[1744366481051,5.3849028,1557.4,1557.3,17.05471]
[1744366481249,0.0063232,1557.6,1557.5,1.28485]
[1744366481547,2.8571,1557.8,1557.7,1.28468]
[1744366481746,2.8571,1557.8,1557.7,9.39248]
[1744366481957,2.85037241,1557.8,1557.7,9.39248]
[1744366482249,1.28454,1557.9,1557.7,6.2119]
[1744366482448,1.28452,1557.9,1557.7,9.39246]
[1744366482648,1.2846,1557.8,1557.7,9.39246]
[1744366483556,1.2846,1557.8,1557.7,8.1078]
[1744366484557,1.2846,1557.8,1557.7,3.2078]
[1744366484752,5.0,1557.8,1557.6,0.00964072]
[1744366484957,1.28468,1557.7,1557.6,0.00964072]
[1744366485756,3.94218,1557.7,1557.6,0.00964072]
[1744366487458,8.94218,1557.7,1557.6,0.00964072]
[1744366488746,2.6575,1557.7,1557.6,1.29441072]
[1744366488956,4.44256,1557.8,1557.7,1.28468]
[1744366489151,3.1579,1557.8,1557.7,4.49248]
[1744366489350,3.1579,1557.8,1557.7,8.1098]
[1744366489351,4.4425,1557.8,1557.7,8.1098]
[1744366489551,4.4425,1557.8,1557.6,0.00964072]
[1744366489552,1.28468,1557.7,1557.6,0.00964072]
[1744366489751,6.90948,1557.7,1557.6,0.00964072]
[1744366490552,11.90948,1557.7,1557.6,0.00964072]
[1744366490957,6.90948,1557.7,1557.6,0.00964072]
[1744366491754,11.90948,1557.7,1557.6,0.00964072]
[1744366493765,6.90948,1557.7,1557.6,0.00964072]
[1744366495066,1.28493,1557.4,1557.3,4.49274]
[1744366495267,1.28493,1557.4,1557.3,3.19474921]
[1744366495762,1.28493,1557.4,1557.3,4.47975921]
[1744366496066,1.28493,1557.4,1557.3,4.47970921]
[1744366496267,4.46393,1557.4,1557.3,4.47970921]
[1744366496667,4.46393,1557.4,1557.3,3.19474921]
[1744366496966,4.46393,1557.4,1557.3,4.47975921]
[1744366497466,4.46393,1557.4,1557.3,3.19474921]
[1744366498063,4.46393,1557.4,1557.3,4.47975921]
[1744366498270,4.46393,1557.4,1557.3,3.19474921]
[1744366498462,1.28501,1557.3,1557.2,3.21744072]
[1744366498663,4.46401,1557.3,1557.2,4.50254072]
[1744366499069,4.46401,1557.3,1557.2,3.21744072]
[1744366500069,4.46401,1557.3,1557.2,0.00964072]
[1744366501767,1.28518,1557.1,1557.0,3.2078]
[1744366502172,2.9369,1557.2,1557.1,1.28518]
[1744366502477,5.7407,1557.4,1557.2,1.28501]
[1744366502478,2.9369,1557.3,1557.2,1.28501]
[1744366502673,2.9369,1557.3,1557.2,7.54481]
[1744366503176,6.29826624,1557.4,1557.3,1.28501]
[1744366503475,6.29826624,1557.4,1557.3,3.052]
[1744366503772,6.29826624,1557.4,1557.2,4.49283]
[1744366503773,1.28501,1557.3,1557.2,4.49283]
[1744366503971,2.9369,1557.3,1557.2,7.54483]
[1744366505172,5.01326624,1557.4,1557.3,1.28501]
[1744366505482,5.01326624,1557.4,1557.3,9.27141]
[1744366506276,5.01326624,1557.4,1557.3,14.27141]
[1744366506585,5.01326624,1557.4,1557.3,9.27141]
[1744366506778,8.18066624,1557.4,1557.3,9.27141]
[1744366506972,5.01326624,1557.4,1557.3,9.27141]
[1744366508683,6.29832624,1557.4,1557.3,4.903]
[1744366508883,5.01326624,1557.4,1557.3,6.18814]
[1744366509379,7.98016624,1557.4,1557.3,6.18814]
[1744366509572,7.98016624,1557.4,1557.3,9.20474]
[1744366509771,9.26522624,1557.4,1557.3,4.903]
[1744366509977,4.25196,1557.4,1557.3,4.903]
[1744366510779,1.28514,1557.3,1557.2,1.28519]
[1744366510972,2.941,1557.3,1557.2,1.28519]
[1744366511174,2.941,1557.3,1557.2,7.51519]
[1744366511872,2.941,1557.3,1557.2,4.49299]
[1744366512373,0.00964072,1557.5,1557.4,1.28506]
[1744366512584,7.95426624,1557.6,1557.5,1.28839007]
[1744366512974,7.95085617,1557.6,1557.5,4.30718]
[1744366513377,1.28508,1557.4,1557.3,1.2851]
[1744366513573,6.86945,1557.5,1557.3,1.27204921]
[1744366513773,2.941,1557.4,1557.3,1.27204921]
[1744366513974,4.22606,1557.4,1557.3,4.29424921]
[1744366514170,2.941,1557.4,1557.3,4.29424921]
[1744366514376,10.45096461,1557.4,1557.2,3.2078]
[1744366514576,7.50996461,1557.4,1557.3,1.28514]
[1744366514788,7.50996461,1557.4,1557.3,3.80024]
[1744366514982,7.50996461,1557.4,1557.3,47.52514]
[1744366515276,7.50996461,1557.4,1557.3,52.52514]
[1744366516190,7.50996461,1557.4,1557.3,47.52514]
[1744366516492,7.50996461,1557.4,1557.3,52.52514]
[1744366517783,6.12582389,1557.4,1557.3,52.52514]
[1744366517989,10.03919847,1557.5,1557.4,1.28506]
[1744366518186,12.50028734,1557.6,1557.5,1.28498]
[1744366518379,7.51863579,1557.8,1557.7,1.28481]
[1744366518579,7.51863579,1557.8,1557.7,50.13861]
[1744366518879,7.51863579,1557.8,1557.7,55.58477639]
[1744366519078,7.51863579,1557.8,1557.7,58.69207639]
[1744366520983,7.51863579,1557.8,1557.7,53.69207639]
[1744366521181,7.51863579,1557.8,1557.7,53.24591]
[1744366522683,3.2064,1557.9,1557.8,1.28473]
[1744366522891,14.86559274,1558.6,1557.7,63.38499]
[1744366523191,4.49059,1558.5,1558.3,1.28427]
[1744366523386,1.28432,1558.3,1558.2,3.2078]
[1744366523586,3.0405,1558.4,1558.3,1.28432]
[1744366527388,8.0405,1558.4,1558.2,3.2078]
[1744366527579,3.0405,1558.4,1558.3,1.28432]
[1744366528188,4.32475,1558.4,1558.2,9.33613]
[1744366528390,4.32476,1558.4,1558.2,6.12833]
[1744366528693,3.0354,1558.3,1558.2,6.12833]
[1744366529193,3.0354,1558.3,1558.2,9.33613]
[1744366529391,5.781,1558.3,1558.2,9.33613]
[1744366530093,5.781,1558.3,1558.2,4.49213]
[1744366531601,2.5904,1558.6,1558.5,1.28415]
[1744366532395,3.87447,1558.6,1558.4,4.49197]
[1744366532594,2.5904,1558.6,1558.5,1.28415]
[1744366533097,3.2078,1558.9,1558.5,1.28415]
[1744366533302,3.1037,1558.8,1558.7,4.49179]
[1744366534000,3.1037,1558.8,1558.7,12.40129]
[1744366535704,3.1037,1558.8,1558.7,7.55829]
[1744366535900,3.1037,1558.8,1558.7,4.49179]
[1744366536298,14.86559274,1559.0,1558.9,1.28382]
[1744366536505,14.86559274,1559.0,1558.9,42.08382]
[1744366536907,14.86559274,1559.0,1558.9,1.28382]
[1744366537408,16.14933274,1559.0,1558.9,1.28382]
[1744366537712,1.28382,1558.9,1558.8,40.80964072]
[1744366537903,9.37732,1558.9,1558.8,0.00964072]
[1744366539010,3.2098,1558.8,1558.4,6.12715]
[1744366539210,1.28415,1558.6,1558.5,1.28412]
[1744366539407,1.28407,1558.6,1558.5,42.08412]
[1744366539608,9.47767,1558.6,1558.5,42.08412]
[1744366539809,9.47767,1558.6,1558.1,12.36592702]
[1744366539810,11.40398,1558.6,1558.1,3.66690702]
[1744366540007,1.28417,1558.5,1558.4,1.28418]
[1744366540208,4.48741072,1558.5,1558.4,1.28418]
[1744366540408,8.20324072,1558.5,1558.4,1.28418]
[1744366540711,1.28432,1558.3,1558.2,1.29403072]
[1744366541113,3.1936,1558.4,1558.3,1.28432]
[1744366541407,3.1936,1558.4,1558.3,4.49212]
[1744366541617,0.00964072,1558.5,1558.4,1.28424]
[1744366541810,0.00964072,1558.5,1558.4,4.28584]
[1744366542007,1.28372,1559.1,1559.0,1.28374]
[1744366542410,6.28372,1559.1,1559.0,1.28374]
[1744366543304,12.25632,1559.1,1558.7,6.41759]
[1744366543509,3.1577,1559.0,1558.9,1.28381]
[1744366543815,3.1577,1559.0,1558.9,4.49161]
[1744366545413,2.8109,1559.2,1559.1,1.28366]
[1744366545615,7.14895,1559.3,1559.1,1.28366]
[1744366545808,5.8654,1559.3,1559.2,1.28358]
[1744366546014,7.14889,1559.3,1559.2,1.28358]
[1744366546215,1.28363,1559.2,1559.1,1.28363]
[1744366546416,2.6576,1559.3,1559.2,1.28358]
[1744366546616,3.94109,1559.3,1559.2,1.28358]
[1744366546915,6.98209,1559.3,1559.2,1.28358]
[1744366547310,5.6986,1559.3,1559.2,1.28358]
[1744366547720,6.98209,1559.3,1559.2,1.28358]
[1744366548021,1.28358,1559.2,1559.1,45.29142]
[1744366548317,4.27528,1559.2,1559.1,45.29142]
[1744366549319,4.27528,1559.2,1559.1,4.49142]
[1744366549521,2.9917,1559.2,1559.1,4.49142]
[1744366550315,4.27528,1559.2,1559.1,1.28362]
[1744366550518,1.28366,1559.1,1559.0,44.77004072]
[1744366550720,4.53036,1559.1,1559.0,40.80964072]
[1744366551020,7.23006,1559.1,1559.0,0.00964072]
[1744366551219,7.23006,1559.1,1559.0,1.29338072]
[1744366551621,3.2467,1559.1,1559.0,1.29338072]
[1744366551823,4.53036,1559.1,1559.0,1.29338072]
[1744366552322,4.53036,1559.1,1559.0,0.00964072]
[1744366553117,4.53036,1559.1,1559.0,1.29338072]
[1744366553715,4.53036,1559.1,1559.0,0.00964072]
[1744366554423,1.28403,1558.7,1558.6,1.284]
[1744366554816,1.28415,1558.5,1558.4,9.80257]
[1744366555924,1.28415,1558.5,1558.4,6.67747]
[1744366556526,1.28415,1558.5,1558.4,1.28424]
[1744366556928,4.40015,1558.5,1558.4,1.28424]
[1744366557525,1.28424,1558.4,1558.3,1.29389072]
[1744366557724,4.40024,1558.4,1558.3,1.29389072]
[1744366559228,3.116,1558.4,1558.3,1.29389072]
[1744366559430,3.116,1558.4,1558.3,3.83679072]
[1744366559627,1.29376072,1558.6,1558.5,1.28415]
[1744366559929,1.29371072,1558.6,1558.5,1.28415]
[1744366560327,0.00964072,1558.6,1558.5,4.25575]
[1744366560724,0.00964072,1558.6,1558.5,9.25575]
[1744366561030,14.42190179,1559.0,1558.9,1.28382]
[1744366561523,1.28382,1558.9,1558.8,5.66]
[1744366561721,4.43102,1558.9,1558.8,1.28391]
[1744366561924,11.27477179,1559.0,1558.9,1.28382]
[1744366562125,14.42197179,1559.0,1558.9,1.28382]
[1744366562319,9.99096179,1559.0,1558.9,1.28382]
[1744366562526,12.48686885,1559.0,1558.9,4.25542]
[1744366563229,13.77060885,1559.0,1558.9,2.9716]
[1744366563527,22.08845885,1559.0,1558.6,8.6289]
[1744366563731,15.67126885,1559.0,1558.8,1.28389]
[1744366563934,16.95507885,1559.0,1558.8,1.28389]
[1744366564121,1.28391,1558.8,1558.6,11.769]
[1744366564324,18.23306885,1559.0,1558.8,1.28385]
[1744366564527,1.28391,1558.8,1558.7,3.1401]
[1744366564726,1.28399,1558.7,1558.6,8.6289]
[1744366564928,1.28399,1558.7,1558.6,5.4211]
[1744366565228,1.28399,1558.7,1558.6,6.70517]
[1744366565733,1.28403,1558.7,1558.6,1.28406]
[1744366565927,3.1844,1558.8,1558.6,1.28406]
[1744366566126,1.28409,1558.6,1558.4,5.8213]
[1744366566328,1.28409,1558.6,1558.3,8.10744072]
[1744366566329,1.28424,1558.4,1558.3,0.00964072]
[1744366566626,1.2845,1558.1,1557.9,2.5408]
[1744366566830,5.7411,1558.3,1558.2,1.2844]
[1744366567033,3.1129,1558.3,1558.2,1.2844]
[1744366567431,4.39722,1558.3,1558.2,1.2844]
[1744366567626,1.2844,1558.2,1558.1,3.2001]
[1744366567823,4.3973,1558.2,1558.1,3.20974072]
[1744366568028,3.1129,1558.2,1558.1,1.29412072]
[1744366568437,4.3973,1558.2,1558.1,1.29412072]
[1744366568828,3.1129,1558.2,1558.1,1.29412072]
[1744366569731,7.049,1558.4,1558.3,1.28432]
[1744366569934,3.2078,1558.4,1558.3,1.28432]
[1744366570435,0.00964072,1558.5,1558.4,1.28424]
[1744366571033,0.00964072,1558.5,1558.4,4.41184]
[1744366571234,3.04054072,1558.5,1558.4,4.41184]
[1744366571830,0.00964072,1558.5,1558.4,4.41184]
[1744366572036,0.00964072,1558.5,1558.4,9.41184]
[1744366572442,0.00964072,1558.5,1558.4,4.41184]
[1744366572836,3.9452,1559.0,1558.5,3.21029]
[1744366573140,18.65759191,1558.8,1558.6,7.47563]
[1744366573340,18.65759191,1558.8,1558.6,4.26783]
[1744366573542,18.65759191,1558.8,1558.7,1.28399]
[1744366573732,18.65759191,1558.8,1558.6,4.2678]
[1744366574547,3.2372,1558.7,1558.6,4.2678]
[1744366574842,4.52119,1558.7,1558.6,2.9838]
[1744366575235,3.2372,1558.7,1558.6,7.47567]
[1744366575434,17.37363191,1558.8,1558.7,1.28399]
[1744366575636,17.37363191,1558.8,1558.7,9.92049]
[1744366575842,17.36399191,1558.8,1558.7,14.92049]
[1744366576143,8.91519191,1558.8,1558.7,14.92049]
[1744366576343,8.91519191,1558.8,1558.7,55.72049]
[1744366577046,0.96293253,1558.8,1558.7,55.72049]
[1744366577849,10.02570442,1559.0,1558.9,1.28382]
[1744366578143,10.02570442,1559.0,1558.9,9.32662]
[1744366578348,10.02570442,1559.0,1558.9,14.32662]
[1744366578747,8.40909442,1559.0,1558.9,14.32662]
[1744366578950,12.53213053,1559.1,1559.0,1.28374]
[1744366579145,12.53213053,1559.1,1559.0,4.53234]
[1744366579552,12.53213053,1559.1,1559.0,45.33234]
[1744366580452,12.53213053,1559.1,1559.0,50.33234]
[1744366580653,12.53213053,1559.1,1559.0,45.33234]
[1744366581058,10.63343468,1559.5,1559.4,1.28341]
[1744366581952,11.91676468,1559.5,1559.4,1.28341]
[1744366582158,11.91676468,1559.5,1559.3,1.28343]
[1744366582359,4.39294,1559.4,1559.2,4.49131]
[1744366582654,3.1095,1559.3,1559.2,4.49131]
[1744366583557,7.52393468,1559.5,1559.4,1.28341]
[1744366583947,7.52393468,1559.5,1559.4,4.49121]
[1744366584352,7.52393468,1559.5,1559.4,7.62231]
[1744366585066,7.52393468,1559.6,1559.5,1.28333]
[1744366585250,7.52393468,1559.6,1559.5,11.98773]
[1744366585660,7.52393468,1559.6,1559.5,6.11733]
[1744366586270,7.52393468,1559.6,1559.5,9.24843]
[1744366588170,7.52393468,1559.6,1559.5,12.45623]
[1744366589367,6.13524468,1559.6,1559.5,17.45623]
[1744366589569,12.53213053,1559.8,1559.7,1.28316]
[1744366589870,7.4956237,1560.2,1560.0,1.28292]
[1744366590068,7.4956237,1560.2,1560.1,3.2078]
[1744366590263,7.4956237,1560.2,1560.1,40.8]
[1744366590569,12.4956237,1560.2,1560.1,40.8]
[1744366590766,10.4609237,1560.2,1560.1,40.8]
[1744366590963,10.4609237,1560.2,1560.1,42.08284]
[1744366592262,11.7436737,1560.2,1560.1,42.08284]
[1744366592464,16.7436737,1560.2,1560.1,40.8]
[1744366592663,1.28284,1560.1,1560.0,4.49071]
[1744366592868,9.60714,1560.1,1560.0,1.28291]
[1744366593867,1.28292,1560.0,1559.9,42.09260072]
[1744366594072,2.9714,1560.0,1559.9,42.09260072]
[1744366594673,2.9714,1560.0,1559.9,1.29260072]
[1744366595069,4.25432,1560.0,1559.9,1.29260072]
[1744366595669,2.9714,1560.0,1559.9,1.29260072]
[1744366596469,4.25432,1560.0,1559.9,1.29260072]
[1744366596668,2.9714,1560.0,1559.9,1.29260072]
[1744366597176,4.25432,1560.0,1559.9,1.29260072]
[1744366597675,4.25432,1560.0,1559.9,0.00964072]
[1744366598170,2.9714,1560.0,1559.9,1.29264072]
[1744366598366,5.359,1560.1,1560.0,1.28292]
[1744366598566,5.359,1560.1,1560.0,4.49072]
[1744366598969,8.5135,1560.1,1560.0,4.49072]
[1744366599975,5.8913,1560.1,1560.0,4.49072]
[1744366600379,2.5956,1560.4,1560.2,1.2827]
[1744366600677,3.82638,1560.3,1560.2,1.2827]
[1744366600866,3.2078,1560.8,1560.2,3.2078]
[1744366601069,1.28259,1560.5,1560.4,1.28259]
[1744366601777,3.0717,1560.5,1560.4,1.28259]
[1744366601976,3.0717,1560.5,1560.4,4.49039]
[1744366602277,3.0717,1560.5,1560.4,7.54209]
[1744366603071,1.28259,1560.4,1560.3,6.11465]
[1744366603270,1.28259,1560.4,1560.3,1.28265]
[1744366604181,4.35425,1560.5,1560.4,1.28259]
[1744366605375,1.28267,1560.4,1560.3,1.28264]
[1744366605574,4.26837,1560.4,1560.3,1.28264]
[1744366605778,1.28267,1560.3,1560.2,4.49055]
[1744366605980,6.87037,1560.3,1560.2,1.28275]
[1744366606983,1.28277,1560.2,1560.1,1.28277]
[1744366607184,6.99397,1560.2,1560.1,1.28277]
[1744366607880,1.28292,1560.1,1560.0,1.28287]
[1744366608181,4.26862,1560.1,1560.0,1.28287]
[1744366609480,2.9857,1560.1,1560.0,1.28287]
[1744366609679,2.7255,1560.2,1560.0,1.28284]
[1744366609879,4.50374,1560.1,1560.0,1.28284]
[1744366610674,3.2209,1560.1,1560.0,1.28284]
[1744366610880,3.2209,1560.1,1560.0,4.48854]
[1744366611191,4.50374,1560.1,1560.0,4.48854]
[1744366611484,3.2209,1560.1,1560.0,4.48854]
[1744366613080,4.50374,1560.1,1560.0,4.48854]
[1744366613285,4.50374,1560.1,1560.0,1.28284]
[1744366614288,1.28292,1560.0,1559.9,0.00964072]
[1744366614490,7.14912,1560.0,1559.9,1.29264072]
[1744366614694,1.28316,1559.7,1559.6,1.28321]
[1744366615587,4.35506,1559.7,1559.6,1.28321]
[1744366615782,7.14936,1559.7,1559.6,1.28321]
[1744366616092,5.8662,1559.7,1559.6,1.28321]
[1744366616284,3.0719,1559.7,1559.6,4.54061]
[1744366618289,3.0719,1559.7,1559.5,3.21744072]
[1744366618489,1.28325,1559.6,1559.5,3.21744072]
[1744366618691,3.97325,1559.6,1559.5,3.21744072]
[1744366618886,7.17285,1559.6,1559.5,0.00964072]
[1744366619798,12.17285,1559.6,1559.5,0.00964072]
[1744366620792,7.17285,1559.6,1559.5,1.29297072]
[1744366621695,5.8896,1559.6,1559.5,1.29297072]
[1744366622088,3.1996,1559.6,1559.5,4.45817072]
[1744366622295,2.59514072,1559.8,1559.7,1.28316]
[1744366622498,6.88722072,1559.8,1559.7,1.28316]
[1744366622991,3.2078,1560.0,1559.9,1.283]
[1744366623197,9.62963,1560.3,1560.2,1.28275]
[1744366623988,1.2828,1560.2,1560.1,1.28277]
[1744366624284,4.2458,1560.2,1560.1,1.28277]
[1744366624496,2.963,1560.2,1560.1,1.28277]
[1744366624894,4.24575,1560.2,1560.1,1.28277]
[1744366625899,16.66480736,1560.2,1560.1,1.28277]
[1744366627396,16.66480736,1560.2,1560.0,3.1129]
[1744366627600,1.28284,1560.1,1560.0,4.39575]
[1744366627795,4.52004,1560.1,1560.0,4.39575]
[1744366628099,4.52004,1560.1,1560.0,1.28285]
[1744366628399,1.28299,1560.0,1559.9,4.49075]
[1744366628599,4.52019,1560.0,1559.9,7.62935]
[1744366628995,4.52019,1560.0,1559.9,4.42155]
[1744366629393,13.70185736,1560.2,1560.1,1.28284]
[1744366629598,1.28284,1560.1,1560.0,4.43575]
[1744366629800,4.52604,1560.1,1560.0,4.43575]
[1744366630101,3.2432,1560.1,1560.0,4.43575]
[1744366630296,0.96206394,1560.2,1560.1,1.28284]
[1744366630494,0.96206394,1560.2,1560.1,7.64354]
[1744366630691,0.96206394,1560.2,1560.1,20.87641865]
[1744366631401,0.96206394,1560.2,1560.1,15.87641865]
[1744366632103,2.24481394,1560.2,1560.1,15.87641912]
[1744366632304,4.20526394,1560.2,1560.1,15.01314]
[1744366632604,0.96206394,1560.2,1560.1,15.87669191]
[1744366633901,0.96206394,1560.2,1560.1,15.87663696]
[1744366634404,2.9957,1560.4,1560.3,1.28267]
[1744366635004,4.27829,1560.4,1560.3,4.49697]
[1744366635503,2.9957,1560.4,1560.3,4.49697]
[1744366637609,4.27829,1560.4,1560.3,4.49697]
[1744366637798,4.27829,1560.4,1560.3,1.28267]
[1744366638202,1.28273,1560.3,1560.2,1.28272]
[1744366638409,1.28273,1560.3,1560.1,13.7561]
[1744366638410,1.28275,1560.2,1560.1,12.50527]
[1744366638704,4.53204,1560.3,1560.2,1.28275]
[1744366638901,3.2493,1560.3,1560.0,5.46648]
[1744366639104,1.28284,1560.1,1560.0,2.28189]
[1744366639296,5.8947,1560.2,1560.1,1.28284]
[1744366639494,5.8947,1560.2,1560.1,4.46744]
[1744366639899,5.02268018,1560.5,1560.1,3.1846]
[1744366640101,4.52472,1560.4,1560.3,1.28259]
[1744366641207,3.2421,1560.4,1560.3,1.28259]
[1744366641410,4.52469,1560.4,1560.3,1.28259]
[1744366641814,1.28275,1560.3,1560.1,3.2078]
[1744366642107,4.48935,1560.3,1560.2,1.28275]
[1744366642610,9.51203018,1560.3,1560.2,1.28275]
[1744366643605,1.28275,1560.2,1560.1,4.49059]
[1744366643808,4.48935,1560.2,1560.1,1.28279]
[1744366644810,3.2066,1560.2,1560.1,1.28279]
[1744366645010,4.48935,1560.2,1560.1,4.41259]
[1744366645308,3.2066,1560.2,1560.1,4.41259]
[1744366645509,6.30541018,1560.3,1560.2,1.28275]
[1744366645704,6.30541018,1560.3,1560.2,4.41255]
[1744366646401,1.28275,1560.2,1560.1,3.2078]
[1744366646608,1.28284,1560.1,1560.0,5.41168]
[1744366648213,1.28284,1560.1,1560.0,8.02518]
[1744366649413,1.28284,1560.1,1560.0,5.41168]
[1744366650307,1.28284,1560.1,1560.0,0.999]
[1744366650514,3.85994,1560.1,1560.0,0.999]
[1744366650701,6.95984,1560.1,1560.0,0.999]
[1744366652409,6.95984,1560.1,1560.0,2.28192]
[1744366652615,5.677,1560.1,1560.0,2.28192]
[1744366652811,9.55000018,1560.2,1560.1,1.28284]
[1744366653017,9.55000018,1560.2,1560.1,4.43964]
[1744366654714,16.94637736,1560.2,1560.1,4.43964]
[1744366655814,16.94637736,1560.2,1560.0,0.999]
[1744366655815,1.28284,1560.1,1560.0,0.999]
[1744366656116,4.41984,1560.1,1560.0,2.28192]
[1744366656317,4.41984,1560.1,1560.0,3.14758083]
[1744366656517,3.137,1560.1,1560.0,3.14758083]
[1744366656717,3.137,1560.1,1560.0,6.22828083]
[1744366656918,4.41984,1560.1,1560.0,6.22828083]
[1744366657109,4.41984,1560.1,1560.0,6.22825669]
[1744366657915,4.41984,1560.1,1560.0,5.36262]
[1744366658119,4.41984,1560.1,1560.0,6.22824944]
[1744366658321,12.41905736,1560.2,1560.1,1.28284]
[1744366658521,12.41905736,1560.2,1560.1,8.48896944]
[1744366658922,2.6624,1560.3,1560.2,1.28275]
[1744366659220,14.33100222,1560.4,1560.3,1.28267]
[1744366659724,14.33100222,1560.4,1560.3,4.41537]
[1744366660022,14.33100222,1560.4,1560.3,5.34227181]
[1744366660222,14.33100222,1560.4,1560.3,2.20957181]
[1744366662124,13.04840222,1560.4,1560.3,2.20957181]
[1744366662425,13.04840222,1560.4,1560.3,5.43937181]
[1744366662725,10.27523269,1560.4,1560.3,5.43937181]
[1744366662928,10.27523269,1560.4,1560.3,5.43948632]